fUST/lending_fUST_20260202
["ID","MTS","AMOUNT","RATE_DAILY","PERIOD"]
[404277969,1770024553818,-635.60292333,0.00034999,7]
[404277970,1770024553839,-635.60292333,0.00034999,7]
[404277971,1770024553859,-500.0,0.00034999,7]
[404277972,1770024553879,-635.60292333,0.00034999,7]
[404277973,1770024553899,-635.60292333,0.00034999,7]
[404277974,1770024553920,-635.60292333,0.00034999,7]
[404277975,1770024553940,-635.60292333,0.00034999,7]
[404277976,1770024553966,-635.60292333,0.00034999,7]
[404277977,1770024553986,-635.60292333,0.00034999,7]
[404277978,1770024554019,-635.60292333,0.00034999,7]
[404277979,1770024554042,-635.60292333,0.00034999,7]
[404277980,1770024554065,-635.60292333,0.00034999,7]
[404277981,1770024554086,-635.60292333,0.00034999,7]
[404277982,1770024554107,-635.60292333,0.00034999,7]
[404277983,1770024554127,-635.60292333,0.00034999,7]
[404277984,1770024554146,-635.60292333,0.00034999,7]
[404277985,1770024554166,-635.60292333,0.00034999,7]
[404277986,1770024554186,-635.60292333,0.00034999,7]
[404277987,1770024554205,-635.60292333,0.00034999,7]
[404277988,1770024554226,-635.60292333,0.00034999,7]
[404277989,1770024554247,-635.60292333,0.00034999,7]
[404277990,1770024554266,-635.60292333,0.00034999,7]
[404277991,1770024554286,-635.60292333,0.00034999,7]
[404277992,1770024554306,-635.60292333,0.00034999,7]
[404277993,1770024554325,-635.60292333,0.00034999,7]
[404277994,1770024554346,-635.60292333,0.00034999,7]
[404277995,1770024554365,-635.60292333,0.00034999,7]
[404277996,1770024554386,-635.60292333,0.00034999,7]
[404277997,1770024554406,-635.60292333,0.00034999,7]
[404277998,1770024554426,-635.60292333,0.00034999,7]
[404277999,1770024554448,-635.60292333,0.00034999,7]
[404278000,1770024554468,-635.60292333,0.00034999,7]
[404278001,1770024554489,-635.60292333,0.00034999,7]
[404278002,1770024554509,-635.60292333,0.00034999,7]
[404278003,1770024554531,-635.60292333,0.00034999,7]
[404278004,1770024554552,-635.60292333,0.00034999,7]
[404278005,1770024554577,-507.23215922,0.00034999,7]
[404278006,1770024554599,-635.60292333,0.00034999,7]
[404278007,1770024554620,-635.60292333,0.00034999,7]
[404278008,1770024554640,-635.60292333,0.00034999,7]
[404278009,1770024554661,-242.42644161,0.00034999,7]
[404278010,1770024554682,-635.60292333,0.00034999,7]
[404278011,1770024554702,-635.60292333,0.00034999,7]
[404278012,1770024554829,-635.60292333,0.00034999,7]
[404278013,1770024554852,-635.60292333,0.00034999,7]
[404278014,1770024554873,-635.60292333,0.00034999,7]
[404278015,1770024554893,-635.60292333,0.00034999,7]
[404278016,1770024554917,-635.60292333,0.00034999,7]
[404278017,1770024554938,-635.60292333,0.00034999,7]
[404278018,1770024554959,-635.60292333,0.00034999,7]
[404278019,1770024554980,-635.60292333,0.00034999,7]
[404278020,1770024555002,-635.60292333,0.00034999,7]
[404278021,1770024555025,-635.60292333,0.00034999,7]
[404278022,1770024555046,-635.60292333,0.00034999,7]
[404278023,1770024555067,-635.60292333,0.00034999,7]
[404278024,1770024555086,-635.60292333,0.00034999,7]
[404278025,1770024555108,-103.9765764,0.00034999,7]
[404278026,1770024572111,-531.62634693,0.00034999,7]
[404278027,1770024572137,-635.60292333,0.00034999,7]
[404278028,1770024572162,-635.60292333,0.00034999,7]
[404278029,1770024572187,-635.60292333,0.00034999,7]
[404278030,1770024572213,-635.60292333,0.00034999,7]
[404278031,1770024572244,-147.78227304,0.00034999,7]
[404278032,1770024573128,-487.82065029,0.00034999,7]
[404278033,1770024573152,-629.2468941,0.00034999,7]
[404278034,1770024573177,-629.2468941,0.00034999,7]
[404278035,1770024573201,-629.2468941,0.00034999,7]
[404278036,1770024573233,-629.2468941,0.00034999,7]
[404278037,1770024573261,-629.2468941,0.00034999,7]
[404278038,1770024573288,-629.2468941,0.00034999,7]
[404278039,1770024573311,-629.2468941,0.00034999,7]
[404278040,1770024573339,-629.2468941,0.00034999,7]
[404278041,1770024573367,-629.2468941,0.00034999,7]
[404278042,1770024573392,-629.2468941,0.00034999,7]
[404278043,1770024573416,-629.2468941,0.00034999,7]
[404278044,1770024573442,-629.2468941,0.00034999,7]
[404278045,1770024573471,-629.2468941,0.00034999,7]
[404278046,1770024573503,-629.2468941,0.00034999,7]
[404278047,1770024573530,-629.2468941,0.00034999,7]
[404278048,1770024573564,-629.2468941,0.00034999,7]
[404278049,1770024573592,-629.2468941,0.00034999,7]
[404278050,1770024573618,-629.2468941,0.00034999,7]
[404278051,1770024573643,-629.2468941,0.00034999,7]
[404278052,1770024573669,-629.2468941,0.00034999,7]
[404278053,1770024573693,-740.75809701,0.00034999,7]
[404278054,1770024573715,-10782.82089972,0.00035,2]
[404278055,1770024573744,-160.34402443,0.00035,2]
[404278056,1770024573768,-4061.68119505,0.00035154,2]
[404278057,1770024573796,-166.847,0.00035158,41]
[404278058,1770024573823,-500.0,0.00035253,7]
[404278059,1770024573851,-383.52589489,0.00035253,7]
[404278060,1770024573875,-483.29917259,0.00035253,7]
[404278061,1770024573899,-242.9725872,0.00035649,2]
[404278062,1770024574037,-740.75809701,0.00036,7]
[404278063,1770024574067,-1500.10377766,0.00037588,14]
[404278064,1770024574094,-338.42,0.00037588,14]
[404278065,1770024574120,-950.34,0.0003899,3]
[404278066,1770024574144,-475.17,0.0003899,3]
[404278067,1770024574172,-50034.00038646,0.00039,120]
[404278068,1770024574197,-158.0,0.00039193,57]
[404278069,1770024574224,-4210.79106367,0.00039198,20]
[404278070,1770024574253,-5000.0,0.00039198,20]
[404278071,1770024574279,-1304.0,0.00039198,20]
[404278072,1770024574304,-1900.68,0.0004036,3]
[404278073,1770024574332,-950.34,0.0004036,3]
[404278074,1770024574358,-793.77,0.00041096,120]
[404278075,1770024574383,-453.13347889,0.00041096,120]
[404278076,1770024574412,-1368.5,0.00042048,30]
[404278077,1770024574437,-1140.41,0.00042048,30]
[404278078,1770024574463,-1000.0,0.00042058,30]
[404278079,1770024574490,-150.0,0.00042058,120]
[404278080,1770024574518,-150.0,0.00044058,120]
[404278081,1770024586245,5000.0,0.00039198,20]
[404278082,1770024608530,5000.0,0.00039198,20]
[404278083,1770024622845,194.13413042,0.00024,2]
[404278084,1770024631173,5000.0,0.00039197,20]
[404278113,1770024632091,-1461.61762312,0.00039197,2]
[404278115,1770024632100,-1642.19,0.0004599,30]
[404278116,1770024632109,-942.09813398,0.00046,120]
[404278118,1770024632123,-379.04108088,0.00046,120]
[404278120,1770024632135,-478.86078611,0.00046,120]
[404278122,1770024632143,-162.065567,0.0004636,60]
[404278124,1770024632152,-3597.25306416,0.000475,120]
[404278149,1770024638286,-1402.74693584,0.000475,120]
[404278150,1770024638296,-500.0,0.00048899,7]
[404278151,1770024638305,-500.0,0.00048899,7]
[404278152,1770024638314,-500.0,0.00048899,7]
[404278153,1770024638323,-500.0,0.00048899,7]
[404278154,1770024638332,-500.0,0.00048899,7]
[404278155,1770024638342,-500.0,0.00048899,7]
[404278156,1770024638351,-500.0,0.00048899,7]
[404278157,1770024638360,-500.0,0.00048899,7]
[404278158,1770024638369,-334.83483621,0.00048899,7]
[404278159,1770024638378,-500.0,0.00048899,7]
[404278160,1770024638387,-500.0,0.00048899,7]
[404278161,1770024638396,-500.0,0.00048899,7]
[404278162,1770024638406,-4060.84299999,0.000489,2]
[404278163,1770024638419,-719.40002068,0.000489,2]
[404278164,1770024638427,-816.42532092,0.000489,2]
[404278165,1770024638436,-1000.0,0.00048971,2]
[404278166,1770024638446,-1000.0,0.00048971,2]
[404278167,1770024638455,-1000.0,0.00048971,2]
[404278168,1770024638464,-1000.0,0.00048971,2]
[404278169,1770024638473,-865.40896424,0.00048971,2]
[404278170,1770024638630,-134.59103576,0.00048971,2]
[404278171,1770024638640,-1000.0,0.00048971,2]
[404278172,1770024638649,-1000.0,0.00048971,2]
[404278173,1770024638659,-1000.0,0.00048971,2]
[404278174,1770024638668,-1000.0,0.00048971,2]
[404278175,1770024638677,-1000.0,0.00048971,2]
[404278176,1770024638687,-1000.0,0.00048971,2]
[404278177,1770024638696,-500.0,0.00048979,120]
[404278178,1770024638706,-1970.63,0.0004898,30]
[404278179,1770024638715,-237.59,0.0004898,30]
[404278180,1770024638725,-197.99,0.0004898,30]
[404278181,1770024638735,-164.99,0.0004898,30]
[404278182,1770024638744,-824.99,0.0004898,30]
[404278183,1770024638753,-500.0,0.00048989,120]
[404278184,1770024638763,-188.30942081,0.00048989,120]
[404278185,1770024638772,-268.46812642,0.00048989,120]
[404278186,1770024638782,-177165.37609273,0.0004899,4]
[404278187,1770024638793,-810.38183408,0.0004899,4]
[404278274,1770024641159,500.0,0.00035257,120]
[404278333,1770024641739,500.0,0.00035257,120]
[404278360,1770024641983,500.0,0.00035257,120]
[404278388,1770024642238,500.0,0.00042057,120]
[404278777,1770024646483,-35999.64922523,0.0004899,4]
[404278778,1770024646538,-3721.81144784,0.0004899,4]
[404278779,1770024650695,961.0674424,0.00037973,2]
[404278780,1770024651669,303.10001603,0.000189,2]
[404278781,1770024651721,151.55000804,0.00019089,2]
[404278782,1770024654402,5000.0,0.00039197,20]
[404278783,1770024676219,300.0,0.00013673,2]
[404278784,1770024676272,389.86756862,0.00043623,2]
[404278785,1770024676297,693.63223956,0.00014221,2]
[404278786,1770024676781,177.78264906,0.00013699,2]
[404278787,1770024677491,5000.0,0.00039197,20]
[404278788,1770024683142,500.0,0.00013699,2]
[404278789,1770024683169,500.0,0.00013273,2]
[404278790,1770024683197,1000.0,0.00014247,2]
[404278791,1770024683223,1000.0,0.00013821,2]
[404278792,1770024683248,865.78800948,0.00014795,2]
[404278793,1770024700353,5000.0,0.00043987,2]
[404278794,1770024722934,5000.0,0.00043987,2]
[404278795,1770024783912,500.0,0.00013273,2]
[404278796,1770024783943,500.0,0.00013699,2]
[404278797,1770024783969,181.96269739,0.00013273,2]
[404278798,1770024783995,594.86628206,0.00013821,2]
[404278799,1770024784021,497.60440429,0.00014247,2]
[404278800,1770024835844,310.0,0.00039197,20]
[404278821,1770025027830,295.07967713,0.00016438,2]
[404278824,1770025367335,16840.0,0.00039203,20]
[404278825,1770025538165,-179.74165615,0.0003366,10]
[404278826,1770025538184,-191.67859845,0.0003366,10]
[404278827,1770025538203,-179.74165614,0.00034701,10]
[404278828,1770025538225,-78.77743335,0.00034898,3]
[404278829,1770025627094,-150.38236857,0.00021918,2]
[404278830,1770025627114,-521.67693125,0.00021973,2]
[404278831,1770025627134,-1521.22256665,0.00034898,3]
[404278832,1770025627154,-153.81851178,0.00035152,120]
[404278833,1770025627176,-372.0,0.00035252,3]
[404278834,1770025627196,-400.0,0.00035252,2]
[404278835,1770025627217,-500.0,0.00035253,120]
[404278836,1770025627236,-500.0,0.00035253,120]
[404278837,1770025627256,-500.0,0.00035253,120]
[404278838,1770025627279,-300.0,0.00035957,30]
[404278839,1770025627301,-300.0,0.00035957,30]
[404278840,1770025627323,-300.0,0.00035957,30]
[404278841,1770025627348,-300.0,0.00035957,30]
[404278842,1770025627369,-300.0,0.00035957,30]
[404278843,1770025627395,-300.0,0.00035957,30]
[404278844,1770025627417,-300.0,0.00035957,30]
[404278845,1770025627439,-300.0,0.00035957,30]
[404278846,1770025627460,-300.0,0.00035957,30]
[404278847,1770025627484,-300.0,0.00035957,30]
[404278848,1770025627510,-253.71768279,0.00035957,30]
[404278849,1770025631086,-46.28231721,0.00035957,30]
[404278850,1770025631107,-300.0,0.00035957,30]
[404278851,1770025631129,-300.0,0.00035957,30]
[404278852,1770025631151,-52.19725155,0.00035957,30]
[404278853,1770025645110,-247.80274845,0.00035957,30]
[404278854,1770025645135,-300.0,0.00035957,30]
[404278855,1770025645159,-150.0,0.00037418,120]
[404278856,1770025645181,-488.41450483,0.00037571,3]
[404278861,1770025743189,2140.25452075,0.00039203,60]
[404278862,1770025744132,194.33339783,0.00014247,2]
[404278863,1770025744194,500.0,0.00013699,2]
[404278864,1770025757118,-1092.548514,0.00036908,2]
[404278865,1770025757138,-198.58549517,0.00037571,3]
[404278866,1770025757159,-5000.0,0.00039203,20]
[404278867,1770025757178,-177.0,0.00039418,120]
[404278868,1770025757198,-166.957,0.00039676,55]
[404278869,1770025757217,-500.0,0.00039676,120]
[404278870,1770025757236,-500.0,0.00039676,120]
[404278871,1770025757256,-500.0,0.00039676,7]
[404278872,1770025757277,-500.0,0.00039676,15]
[404278873,1770025757298,-500.0,0.00039676,15]
[404278874,1770025757317,-648.3149818,0.00039676,7]
[404278875,1770025757338,-500.0,0.00039676,15]
[404278876,1770025757358,-500.0,0.00039676,15]
[404278877,1770025757379,-500.0,0.00039676,7]
[404278878,1770025757399,-500.0,0.00039676,15]
[404278879,1770025757420,-500.0,0.00039676,15]
[404278880,1770025757447,-500.0,0.00039676,7]
[404278881,1770025757469,-500.0,0.00039676,15]
[404278882,1770025757490,-500.0,0.00039676,7]
[404278883,1770025757511,-500.0,0.00039676,15]
[404278884,1770025757531,-500.0,0.00039676,15]
[404278885,1770025757641,-508.08494535,0.00039676,7]
[404278886,1770025757663,-500.0,0.00039676,15]
[404278887,1770025757684,-500.0,0.00039676,15]
[404278888,1770025757707,-500.0,0.00039676,7]
[404278889,1770025757728,-348.59638531,0.00039676,15]
[404278890,1770025757750,-500.0,0.00039676,15]
[404278891,1770025757772,-500.0,0.00039676,15]
[404278892,1770025757798,-500.0,0.00039676,7]
[404278893,1770025757821,-500.0,0.00039676,15]
[404278894,1770025757844,-546.93407011,0.00039676,15]
[404278895,1770025757864,-500.0,0.00039676,15]
[404278896,1770025757885,-500.0,0.00039676,15]
[404278897,1770025757906,-500.0,0.00039676,7]
[404278898,1770025757925,-500.0,0.00039676,15]
[404278899,1770025757945,-500.0,0.00039676,7]
[404278900,1770025757965,-500.0,0.00039676,15]
[404278901,1770025757985,-500.0,0.00039676,7]
[404278902,1770025758006,-500.0,0.00039676,7]
[404278903,1770025758027,-500.0,0.00039676,15]
[404278904,1770025758056,-500.0,0.00039676,7]
[404278905,1770025758076,-409.59981538,0.00039676,15]
[404278906,1770025758097,-500.0,0.00039676,7]
[404278907,1770025758118,-500.0,0.00039676,7]
[404278908,1770025758139,-500.0,0.00039676,7]
[404278909,1770025758160,-500.0,0.00039676,7]
[404278910,1770025758182,-500.0,0.00039676,15]
[404278911,1770025758202,-500.0,0.00039676,7]
[404278912,1770025758222,-500.0,0.00039676,15]
[404278913,1770025758242,-500.0,0.00039676,15]
[404278914,1770025758262,-500.0,0.00039677,120]
[404278915,1770025758281,-500.0,0.00039678,15]
[404278916,1770025758306,-500.0,0.00039678,120]
[404278917,1770025758325,-6231.8009985,0.00039678,2]
[404278918,1770025758344,-156.21920252,0.00039778,2]
[404278919,1770025758364,-500.0,0.00039878,120]
[404278920,1770025758384,-715.1094399,0.00039907,2]
[404278921,1770025758405,-740.75809701,0.00039979,7]
[404278922,1770025758429,-500.0,0.00039979,120]
[404278923,1770025758451,-300.0,0.00039986,60]
[404278924,1770025758475,-300.0,0.00039986,60]
[404278925,1770025758496,-300.0,0.00039986,60]
[404278926,1770025758518,-300.0,0.00039986,60]
[404278927,1770025758542,-300.0,0.00039986,60]
[404278928,1770025758563,-300.0,0.00039986,60]
[404278929,1770025758583,-300.0,0.00039986,60]
[404278930,1770025758604,-300.0,0.00039986,60]
[404278931,1770025758625,-300.0,0.00039986,60]
[404278932,1770025758647,-300.0,0.00039986,60]
[404278933,1770025758669,-300.0,0.00039986,60]
[404278934,1770025758689,-300.0,0.00039986,60]
[404278935,1770025758711,-300.0,0.00039986,60]
[404278936,1770025758732,-300.0,0.00039986,60]
[404278937,1770025758753,-300.0,0.00039986,60]
[404278938,1770025758775,-600.0,0.00040067,60]
[404278939,1770025758795,-500.0,0.0004007,120]
[404278940,1770025758817,-204.0,0.00041418,120]
[404278941,1770025758836,-300.99,0.000419,5]
[404278942,1770025758856,-183.30751201,0.000419,5]
[404278943,1770025758875,-156.21920249,0.00041929,2]
[404278944,1770025758894,-191.91834754,0.00041999,31]
[404278945,1770025758915,-580.18936146,0.00041999,31]
[404278946,1770025758935,-237.84660401,0.00041999,31]
[404278947,1770025758954,-166.4926228,0.00041999,31]
[404278948,1770025758974,-231.0,0.00043418,120]
[404278949,1770025758996,-720.0,0.00044073,60]
[404278950,1770025759016,-156.21920249,0.0004408,2]
[404278951,1770025773656,5000.0,0.00039203,20]
[404278958,1770025796201,5000.0,0.00039203,20]
[404278960,1770025815838,500.0,0.00039675,7]
[404278961,1770025816288,483.17737615,0.00039675,15]
[404278962,1770025816652,445.34277171,0.00039675,7]
[404278963,1770025816677,500.0,0.00039675,15]
[404278964,1770025816923,267.73331282,0.00039675,15]
[404278965,1770025819477,5000.0,0.00039203,20]
[404278966,1770025830904,406.13255302,0.0004028,31]
[404278975,1770025832299,-961.0674424,0.00044431,2]
[404278978,1770025832311,-258.0,0.00045418,120]
[404278980,1770025832320,-156.21920249,0.0004623,2]
[404278982,1770025832330,-281.16846622,0.00047229,7]
[404278984,1770025832340,-285.0,0.00047418,120]
[404278986,1770025832354,-182.26,0.0004751,10]
[404278988,1770025832363,-550.0,0.00047519,5]
[404278990,1770025832372,-4212.04520466,0.0004752,2]
[404279017,1770025838758,-4914.71567694,0.0004752,2]
[404279018,1770025838770,-11685.95427784,0.0004752,2]
[404279019,1770025838812,-106547.11587274,0.0004752,2]
[404279020,1770025838926,-776.41,0.0004752,2]
[404279021,1770025838938,-1031.4,0.0004752,2]
[404279022,1770025839580,-43401.23843951,0.0004752,2]
[404279039,1770025840756,-1114.12208675,0.0004752,2]
[404279200,1770025842258,4175.59997115,0.00039203,20]
[404279203,1770025842278,824.40002885,0.00039203,20]
[404279443,1770025844684,-380.0,0.0004752,2]
[404279451,1770025844748,-65.75143497,0.0004752,2]
[404279671,1770025847490,-131.80191703,0.0004752,2]
[404279672,1770025847543,-3721.82089869,0.0004752,2]
[404279673,1770025848339,5000.0,0.000425,120]
[404279674,1770025853985,500.0,0.00039677,120]
[404279675,1770025854252,500.0,0.00039878,120]
[404279676,1770025865975,5000.0,0.00039203,20]
[404279677,1770025877105,458.08,0.00039676,120]
[404279678,1770025879930,1312.59,0.00039251,2]
[404279679,1770025880392,10000.0,0.00037198,2]
[404279680,1770025888836,5000.0,0.00039203,20]
[404279681,1770025912646,5000.0,0.00039203,20]
[404279682,1770025921898,3131.832035,0.00037858,2]
[404279683,1770025928926,5000.0,0.0004155,120]
[404279684,1770026006311,150.0,0.00018,2]
[404279687,1770026808428,1653.0,0.00039211,120]
[404279688,1770026838227,-5000.0,0.00031721,2]
[404279689,1770026838248,-1487.0,0.0003204,3]
[404279690,1770026838269,-400.0,0.00032359,2]
[404279691,1770026838289,-400.0,0.0003236,3]
[404279692,1770026838309,-400.0,0.00032361,3]
[404279693,1770026838328,-300.0,0.00032361,3]
[404279694,1770026838347,-300.0,0.00032361,3]
[404279695,1770026838367,-2954.094146,0.00032364,2]
[404279696,1770026838386,-166.957,0.00032372,32]
[404279697,1770026838405,-209.58683834,0.00032372,2]
[404279698,1770026838423,-500.0,0.00034339,7]
[404279699,1770026838442,-631.86215522,0.00034339,7]
[404279700,1770026838461,-500.0,0.00034339,7]
[404279701,1770026838481,-500.0,0.00034339,7]
[404279702,1770026838502,-500.0,0.00034339,7]
[404279703,1770026838522,-500.0,0.00034339,7]
[404279704,1770026838542,-500.0,0.00034339,7]
[404279705,1770026838563,-500.0,0.00034339,7]
[404279706,1770026838583,-500.0,0.00034339,7]
[404279707,1770026838604,-500.0,0.00034339,7]
[404279708,1770026838623,-502.53505348,0.00034339,7]
[404279709,1770026838643,-204.28993515,0.00034339,7]
[404279710,1770026838662,-500.0,0.00034339,7]
[404279711,1770026838682,-500.0,0.00034339,7]
[404279712,1770026838703,-335.82750889,0.00034339,7]
[404279713,1770026854104,-164.17249111,0.00034339,7]
[404279714,1770026854125,-344.97001312,0.00034339,7]
[404279715,1770026961127,-400.0,0.00034337,2]
[404279716,1770026961152,-200.0,0.00034337,3]
[404279717,1770026961178,-500.0,0.00034338,7]
[404279718,1770026961205,-500.0,0.00034338,7]
[404279719,1770026961233,-500.0,0.00034338,7]
[404279720,1770026961264,-500.0,0.00034338,7]
[404279721,1770026961293,-500.0,0.00034338,7]
[404279722,1770026961321,-500.0,0.00034338,7]
[404279723,1770026961349,-507.27645082,0.00034338,7]
[404279724,1770026961374,-500.0,0.00034338,7]
[404279725,1770026961401,-500.0,0.00034338,7]
[404279726,1770026961431,-500.0,0.00034338,7]
[404279727,1770026961458,-500.0,0.00034338,7]
[404279728,1770026961487,-500.0,0.00034338,7]
[404279729,1770026961514,-500.0,0.00034338,7]
[404279730,1770026961541,-500.0,0.00034338,7]
[404279731,1770026961567,-500.0,0.00034338,7]
[404279732,1770026961596,-500.0,0.00034338,7]
[404279733,1770026961624,-500.0,0.00034338,7]
[404279734,1770026961650,-500.0,0.00034338,7]
[404279735,1770026961681,-500.0,0.00034338,7]
[404279736,1770026961710,-500.0,0.00034338,7]
[404279737,1770026961737,-400.0,0.00034338,7]
[404279738,1770026961764,-500.0,0.00034338,7]
[404279739,1770026961794,-500.0,0.00034338,7]
[404279740,1770026961820,-500.0,0.00034338,7]
[404279741,1770026961847,-500.0,0.00034338,7]
[404279742,1770026961874,-500.0,0.00034338,7]
[404279743,1770026961900,-500.0,0.00034338,7]
[404279744,1770026961925,-403.59951618,0.00034338,7]
[404279745,1770026961951,-500.0,0.00034338,7]
[404279746,1770026961978,-500.0,0.00034338,7]
[404279747,1770026962004,-500.0,0.00034338,7]
[404279748,1770026962028,-500.0,0.00034338,7]
[404279749,1770026962061,-500.0,0.00034338,7]
[404279750,1770026962090,-600.75971291,0.00034338,7]
[404279751,1770026962116,-499.99999999,0.00034338,7]
[404279752,1770026962141,-16460.17052594,0.00034339,2]
[404279753,1770026962166,-740.75809701,0.00034341,7]
[404279754,1770026962193,-284.29278712,0.00034341,7]
[404279755,1770026962219,-20784.5893943,0.00034342,2]
[404279756,1770026962248,-630.34554011,0.00034662,2]
[404279757,1770026962274,-1000.0,0.00034762,30]
[404279758,1770026962299,-200.0,0.00034793,3]
[404279759,1770026962325,-172.2,0.00036471,60]
[404279760,1770026962351,-172.2,0.00036571,60]
[404279761,1770026962377,-172.2,0.00036671,60]
[404279762,1770026962404,-172.2,0.00036771,60]
[404279763,1770026962432,-626.12180841,0.00036788,2]
[404279764,1770026962459,-150.0,0.000368,29]
[404279765,1770026962483,-560.0,0.00036842,2]
[404279766,1770026962510,-172.2,0.00036871,60]
[404279767,1770026962535,-172.25656606,0.00036971,60]
[404279768,1770026962562,-500.0,0.00037521,120]
[404279769,1770026962585,-500.0,0.00037521,120]
[404279770,1770026962608,-265.5703424,0.00037615,2]
[404279771,1770026962631,-630.34554009,0.00037752,2]
[404279772,1770026962655,-301.0,0.00037771,7]
[404279773,1770026962680,-5000.0,0.00039211,20]
[404279774,1770026962704,-500.0,0.00039676,120]
[404279775,1770026962728,-500.0,0.00039678,120]
[404279776,1770026962752,-150.0,0.00040826,120]
[404279777,1770026962776,-630.34554009,0.00040843,2]
[404279778,1770026962804,-177.0,0.00042826,120]
[404279779,1770026962828,-500.0,0.00042999,120]
[404279780,1770026962850,-500.0,0.00042999,120]
[404279781,1770026962875,-630.34554009,0.00043933,2]
[404279782,1770026963499,319.0,0.00036787,2]
[404279783,1770026978492,5000.0,0.00039211,20]
[404279784,1770026979026,162.87674937,0.00036471,60]
[404279785,1770026979846,10584.678873,0.000392,15]
[404279786,1770027001166,5000.0,0.00039211,20]
[404279787,1770027024152,5000.0,0.00039211,20]
[404279812,1770027032502,-25033.43402555,0.00039211,4]
[404279814,1770027032511,-204.0,0.00044826,120]
[404279815,1770027032520,-384.5117464,0.00046085,30]
[404279816,1770027032530,-500.0,0.00046271,60]
[404279817,1770027032539,-500.0,0.00046271,60]
[404279818,1770027032549,-500.0,0.00046271,60]
[404279819,1770027032559,-500.0,0.00046408,60]
[404279820,1770027032568,-500.0,0.00046408,60]
[404279821,1770027032577,-500.0,0.00046408,60]
[404279822,1770027032587,-1840.08018554,0.00046445,28]
[404279823,1770027032595,-5000.0,0.000465,120]
[404279824,1770027032605,-549.24067926,0.00046545,60]
[404279825,1770027032614,-400.0,0.00046545,60]
[404279826,1770027032623,-500.0,0.00046545,60]
[404279827,1770027032633,-500.0,0.00046726,120]
[404279828,1770027032642,-261.46075766,0.00046726,120]
[404279829,1770027032651,-500.0,0.00046726,120]
[404279830,1770027032660,-500.0,0.00046726,120]
[404279831,1770027032669,-231.0,0.00046826,120]
[404279832,1770027032678,-500.0,0.00046863,120]
[404279833,1770027032689,-500.0,0.00046863,120]
[404279834,1770027032698,-500.0,0.00046863,120]
[404279835,1770027032708,-13559.5116499,0.0004699,4]
[404279836,1770027032718,-500.0,0.00046999,120]
[404279837,1770027032727,-500.0,0.00047,120]
[404279838,1770027032738,-500.0,0.00047,120]
[404279839,1770027032747,-500.0,0.00047,120]
[404279840,1770027032757,-25000.0,0.00047,120]
[404279841,1770027032767,-1000.0,0.00047,120]
[404279842,1770027032775,-151.0,0.00047,120]
[404279843,1770027032784,-151.0,0.00047,120]
[404279844,1770027032793,-151.0,0.00047,120]
[404279845,1770027032802,-655.17,0.00047016,30]
[404279846,1770027032811,-545.97,0.00047016,30]
[404279847,1770027032823,-454.98,0.00047016,30]
[404279848,1770027032833,-379.15,0.00047016,30]
[404279849,1770027032843,-315.96,0.00047016,30]
[404279850,1770027032852,-263.3,0.00047016,30]
[404279851,1770027032862,-219.41,0.00047016,30]
[404279852,1770027032871,-182.85,0.00047016,30]
[404279853,1770027032880,-152.37,0.00047016,30]
[404279854,1770027032889,-761.88,0.00047016,30]
[404279855,1770027032898,-13559.5116499,0.00047016,4]